bitfinex-derivatives/quotes_SOLF0:USTF0_20251115
["timestamp","ask_amount","ask_price","bid_price","bid_amount"]
[1763168336875,9.1148,141.08,141.06,3.20380998]
[1763168337588,2.73,141.1,141.07,2.71056409]
[1763168337789,2.73,141.14,141.08,3.15]
[1763168337990,9.1134,141.11,141.1,0.04502564]
[1763168339783,2.73,141.07,141.06,6.57173126]
[1763168340284,9.1152,141.08,141.06,6.57173126]
[1763168340786,9.1152,141.08,141.06,6.62448758]
[1763168340993,9.1606877,141.08,141.06,6.62448758]
[1763168341393,0.0454877,141.08,141.07,3.15]
[1763168341694,0.0454877,141.08,141.06,9.77448758]
[1763168341988,2.73,141.07,141.06,0.05275632]
[1763168342196,2.7754877,141.08,141.06,0.05275632]
[1763168342388,9.1602877,141.08,141.06,0.05275632]
[1763168342785,2.73,141.07,141.06,0.05275632]
[1763168344186,9.1152,141.07,141.06,0.05275632]
[1763168344385,0.0454877,141.08,141.06,0.05275632]
[1763168344686,2.7754877,141.08,141.06,0.05275632]
[1763168346096,0.0454877,141.08,141.07,3.33]
[1763168346588,0.0454877,141.08,141.07,9.90173126]
[1763168347493,0.0454877,141.08,141.07,3.33]
[1763168347891,2.7754877,141.08,141.06,9.33985431]
[1763168348098,0.0454877,141.08,141.07,9.9065339]
[1763168348290,0.0454877,141.08,141.07,12.11771268]
[1763168348792,0.0454877,141.08,141.07,3.33]
[1763168348988,0.0454877,141.08,141.07,12.11771268]
[1763168349289,0.0454877,141.08,141.07,3.33]
[1763168349489,0.0454877,141.08,141.07,12.11771268]
[1763168350095,0.0454877,141.08,141.07,3.33]
[1763168350296,0.0454877,141.08,141.07,12.11771268]
[1763168356296,2.78,141.18,141.08,3.32]
[1763168356498,2.78,141.18,141.1,9.88773339]
[1763168356688,9.1621,141.14,141.11,3.32]
[1763168356887,2.78,141.13,141.1,6.56773339]
[1763168357090,2.78,141.13,141.1,9.88773339]
[1763168357287,9.1626,141.13,141.1,9.93369862]
[1763168357696,2.78,141.13,141.1,9.93369862]
[1763168357890,2.78,141.13,141.11,3.32]
[1763168359203,2.78,141.16,141.11,3.32]
[1763168359386,2.78,141.16,141.13,3.32]
[1763168359698,9.1611,141.16,141.13,3.32]
[1763168359892,9.1611,141.16,141.12,0.04836048]
[1763168359893,2.78,141.16,141.12,0.04836048]
[1763168360489,6.3821,141.14,141.12,0.04836048]
[1763168360690,2.78,141.13,141.12,0.04836048]
[1763168361701,2.78,141.12,141.08,6.56773339]
[1763168362089,2.78,141.12,141.07,9.88773339]
[1763168362493,6.384,141.1,141.07,9.88773339]
[1763168362798,6.384,141.1,141.08,0.04972424]
[1763168363302,6.384,141.1,141.08,6.61745763]
[1763168367098,6.3843,141.09,141.08,0.04972424]
[1763168367402,9.1643,141.09,141.08,0.04972424]
[1763168369804,2.78,141.09,141.08,0.04972424]
[1763168370015,2.82836048,141.11,141.08,0.04972424]
[1763168371213,2.78,141.09,141.08,0.04972424]
[1763168374808,6.43206048,141.11,141.09,3.06]
[1763168375111,6.43206048,141.11,141.09,9.63321601]
[1763168375812,0.04836048,141.11,141.09,9.63321601]
[1763168376015,0.04836048,141.11,141.09,3.06]
[1763168376216,0.04836048,141.11,141.09,9.63476963]
[1763168376617,2.78,141.1,141.09,6.57476963]
[1763168377009,9.1638,141.1,141.09,6.57476963]
[1763168377209,2.78,141.09,141.08,6.62449387]
[1763168377410,2.78,141.09,141.08,0.04972424]
[1763168377719,9.1643,141.09,141.08,0.04972424]
[1763168378607,9.1652,141.07,141.06,6.57858633]
[1763168381923,6.3852,141.07,141.06,9.63858633]
[1763168382225,6.3852,141.07,141.05,9.68344231]
[1763168383016,9.1652,141.07,141.05,9.68344231]
[1763168383425,6.3856,141.06,141.05,9.68344231]
[1763168383925,2.78,141.07,141.05,9.68344231]
[1763168384315,2.78,141.07,141.05,6.62344231]
[1763168384514,2.78,141.07,141.05,8.3583038]
[1763168385223,6.3856,141.06,141.05,8.3583038]
[1763168387018,6.3856,141.06,141.05,8.35306378]
[1763168387824,6.3856,141.06,141.05,11.41306378]
[1763168388122,6.3856,141.06,141.05,8.35306378]
[1763168389227,6.3856,141.06,141.05,11.41306378]
[1763168390128,6.3856,141.06,141.05,8.35306378]
[1763168390727,9.1656,141.06,141.05,8.35306378]
[1763168391127,6.3856,141.06,141.05,8.35306378]
[1763168392326,6.3856,141.06,141.05,11.41306378]
[1763168393828,6.3856,141.06,141.05,8.35306378]
[1763168394628,6.3856,141.06,141.05,11.41306378]
[1763168397932,6.4326095,141.08,141.06,3.06]
[1763168398233,6.4326095,141.08,141.07,4.79486149]
[1763168398920,6.4326095,141.08,141.07,1.73486149]
[1763168400131,9.2126095,141.08,141.06,9.63535582]
[1763168400335,6.4326095,141.08,141.07,3.06]
[1763168400533,6.4326095,141.08,141.07,1.73405898]
[1763168400828,9.2126095,141.08,141.07,1.73405898]
[1763168401128,6.4326095,141.08,141.07,1.73405898]
[1763168401520,0.0476095,141.08,141.07,1.73405898]
[1763168401716,0.0476095,141.08,141.07,4.79405898]
[1763168403137,0.0476095,141.08,141.07,11.3694148]
[1763168403836,2.78,141.13,141.08,3.07]
[1763168404035,2.78,141.13,141.11,3.07]
[1763168404240,2.78,141.13,141.1,4.80405898]
[1763168404537,9.163,141.12,141.1,4.80405898]
[1763168404836,9.1634,141.11,141.1,0.05447798]
[1763168405027,9.1634,141.11,141.07,6.56985233]
[1763168405028,2.78,141.11,141.07,6.56985233]
[1763168405337,6.3847,141.08,141.06,11.37391131]
[1763168405525,6.3847,141.08,141.07,6.56985233]
[1763168405932,6.3847,141.08,141.06,4.80405898]
[1763168405933,9.1647,141.08,141.06,11.37391131]
[1763168406132,6.3847,141.08,141.07,6.56985233]
[1763168406637,0.04756264,141.09,141.07,9.63985233]
[1763168407043,0.04756264,141.09,141.08,4.80405898]
[1763168407235,0.04756264,141.09,141.08,11.37391131]
[1763168407926,6.383,141.12,141.09,3.07]
[1763168408127,2.78,141.14,141.11,4.80405898]
[1763168408332,2.78,141.14,141.11,1.73405898]
[1763168408740,2.78,141.14,141.11,8.31316085]
[1763168408938,2.78,141.12,141.11,8.36429569]
[1763168409233,2.78,141.12,141.11,0.05113484]
[1763168409635,2.78,141.12,141.11,1.78519382]
[1763168410239,2.78,141.12,141.11,8.36429569]
[1763168410840,2.78,141.12,141.11,1.78519382]
[1763168411026,2.78,141.12,141.11,8.36429569]
[1763168411340,2.78,141.12,141.11,1.78519382]
[1763168412128,9.1326,141.13,141.11,9.98023671]
[1763168412336,9.1326,141.13,141.11,11.71429569]
[1763168413544,6.3826,141.13,141.11,9.98023671]
[1763168413746,9.1326,141.13,141.11,9.98023671]
[1763168413948,2.75,141.12,141.11,6.63023671]
[1763168414141,2.75,141.12,141.03,17.56497859]
[1763168414142,2.75,141.12,141.08,8.78771268]
[1763168414342,0.04781234,141.14,141.08,8.78771268]
[1763168414343,9.1343,141.09,141.08,8.78771268]
[1763168414541,9.1343,141.09,141.07,13.87177166]
[1763168414736,6.3843,141.09,141.07,13.87177166]
[1763168415041,6.3843,141.09,141.07,5.08405898]
[1763168415238,2.75,141.14,141.08,3.35]
[1763168415542,2.79996274,141.12,141.08,3.35]
[1763168415846,2.75,141.1,141.09,0.0506253]
[1763168420844,6.3834,141.11,141.09,3.4006253]
[1763168421245,6.3834,141.11,141.1,5.08405898]
[1763168422538,0.04996274,141.12,141.11,3.35]
[1763168424442,2.75,141.18,141.11,3.35]
[1763168424648,2.75,141.18,141.14,5.08405898]
[1763168425550,0.04572674,141.17,141.15,0.04872446]
[1763168426148,9.17652674,141.17,141.15,0.04872446]
[1763168427254,0.04572674,141.17,141.15,3.39872446]
[1763168428241,2.75,141.16,141.15,0.04872446]
[1763168430249,2.75,141.16,141.1,1.73405898]
[1763168430452,2.75,141.13,141.1,5.08405898]
[1763168431050,9.1326,141.13,141.1,5.08405898]
[1763168431357,9.18475046,141.13,141.1,5.13216501]
[1763168431650,0.05215046,141.13,141.11,3.35]
[1763168432859,0.05215046,141.13,141.12,5.08405898]
[1763168433652,6.3808,141.17,141.13,3.35]
[1763168433854,2.75,141.19,141.15,5.08405898]
[1763168434046,2.75,141.19,141.15,1.73405898]
[1763168434250,2.78,141.16,141.15,1.73405898]
[1763168440865,6.3816,141.15,141.14,0.04581431]
[1763168441162,9.1616,141.15,141.14,0.04581431]
[1763168443262,6.3831,141.12,141.1,6.05728921]
[1763168443470,6.3831,141.12,141.11,3.35]
[1763168444265,2.78,141.11,141.1,0.05396172]
[1763168444464,2.78,141.11,141.08,6.05728921]
[1763168444465,2.78,141.11,141.08,2.70728921]
[1763168444659,2.78,141.11,141.09,0.05300497]
[1763168444860,6.3858,141.06,141.04,2.70728921]
[1763168445556,6.3858,141.06,141.04,6.05728921]
[1763168445857,6.3858,141.06,141.05,3.35]
[1763168446057,0.05154956,141.06,141.05,3.35]
[1763168446765,0.05154956,141.06,141.04,6.1030284]
[1763168446968,2.83154956,141.06,141.04,2.7530284]
[1763168447359,2.83154956,141.06,141.04,0.04573919]
[1763168447559,6.3861,141.05,141.04,3.39573919]
[1763168447866,2.83154956,141.06,141.04,0.04573919]
[1763168448068,9.21724956,141.06,141.04,0.04573919]
[1763168448455,2.78,141.05,141.04,0.04573919]
[1763168451461,2.78,141.03,140.99,2.70728921]
[1763168452260,2.78,141.0,140.97,6.05728921]
[1763168452463,2.82491659,141.0,140.98,3.35]
[1763168452873,2.82491659,141.0,140.97,6.10567162]
[1763168453660,2.82491659,141.0,140.98,3.35]
[1763168453862,0.04491659,141.0,140.98,3.35]
[1763168454157,6.389,140.99,140.98,3.35]
[1763168454356,6.389,140.99,140.97,6.10567162]
[1763168454560,6.389,140.99,140.98,3.35]
[1763168455363,6.389,140.99,140.97,6.10567162]
[1763168455565,2.82491659,141.0,140.97,6.10567162]
[1763168455867,2.82491659,141.0,140.98,3.35]
[1763168456261,6.3891,140.99,140.97,6.10567162]
[1763168456569,9.1691,140.99,140.97,6.10567162]
[1763168456763,6.3891,140.99,140.97,6.10567162]
[1763168457067,6.3891,140.99,140.98,3.35]
[1763168458159,2.78,141.04,140.98,3.35]
[1763168458355,2.78,141.06,141.02,3.35]
[1763168458560,2.78,141.06,141.01,6.05728921]
[1763168458765,2.78,141.04,141.01,6.05728921]
[1763168459274,2.83047963,141.04,141.01,6.10573818]
[1763168459569,9.1674,141.03,141.01,6.10573818]
[1763168459763,9.1674,141.03,141.01,2.75573818]
[1763168460462,2.78,141.02,141.01,0.04844897]
[1763168460668,9.1693,140.98,140.97,2.70728921]
[1763168460872,2.78,140.98,140.95,2.70728921]
[1763168461065,2.78,140.98,140.93,2.70728921]
[1763168461265,2.78,140.98,140.91,6.05728921]
[1763168461462,2.78,141.01,140.92,3.35]
[1763168461662,0.05221634,140.98,140.96,3.35]
[1763168461864,0.05295533,140.98,140.96,3.40405539]
[1763168462374,2.83295533,140.98,140.96,0.05405539]
[1763168463369,2.78,140.97,140.96,0.05405539]
[1763168464066,2.78,140.96,140.92,3.35]
[1763168464467,2.78,140.96,140.91,5.80728921]
[1763168464669,2.78,140.96,140.91,3.1]
[1763168465174,2.8313977,140.95,140.92,0.05094274]
[1763168465976,9.1712,140.94,140.92,0.05094274]
[1763168467079,2.78,140.93,140.87,3.1]
[1763168467268,2.78,140.91,140.84,5.80728921]
[1763168467470,2.78,140.91,140.84,3.1]
[1763168467672,6.3944,140.87,140.84,3.1]
[1763168468076,2.78,140.91,140.84,3.15451553]
[1763168468375,2.78,140.94,140.86,3.1]
[1763168469164,6.3922,140.92,140.86,3.1]
[1763168469363,2.82820508,140.91,140.89,0.05118089]
[1763168469574,2.82899415,140.91,140.89,0.05118089]
[1763168470684,2.78,140.9,140.89,0.05118089]
[1763168472281,2.78,140.87,140.83,3.1]
[1763168472482,2.78,140.93,140.83,3.1]
[1763168472874,2.78,140.9,140.83,3.1]
[1763168473284,2.82620673,140.88,140.85,0.04801775]
[1763168473583,0.05226888,140.88,140.86,3.27]
[1763168477081,2.78,140.87,140.85,0.05005321]
[1763168477266,0.05226888,140.88,140.85,3.32005321]
[1763168479374,6.44616888,140.88,140.85,3.32005321]
[1763168479572,2.83226888,140.88,140.85,3.32005321]
[1763168479981,6.3944,140.87,140.85,3.32005321]
[1763168481085,9.1744,140.87,140.85,0.05005321]
[1763168481287,2.78,140.86,140.85,0.05005321]
[1763168481579,9.1744,140.87,140.85,0.05005321]
[1763168483277,0.05226888,140.88,140.85,3.32005321]
[1763168485185,6.44616888,140.88,140.85,3.32005321]
[1763168485390,0.05226888,140.88,140.85,3.32005321]
[1763168486586,2.83226888,140.88,140.85,0.05005321]
[1763168486789,9.1745,140.87,140.85,0.05005321]
[1763168487686,2.83226888,140.88,140.85,3.32005321]
[1763168488498,0.05226888,140.88,140.85,3.32005321]
[1763168490795,2.78,140.97,140.91,3.27]
[1763168491389,2.78,140.94,140.89,2.70728921]
[1763168491598,2.78,140.94,140.87,3.27]
[1763168491802,6.3922,140.92,140.9,3.31512973]
[1763168492097,6.44645797,140.92,140.9,3.31742572]
[1763168492488,2.78,140.91,140.9,0.04742572]
[1763168492692,2.78,140.91,140.84,3.27]
[1763168493697,2.70728921,140.95,140.86,0.05417971]
[1763168493698,6.3939,140.88,140.86,0.05417971]
[1763168493898,0.05069604,140.88,140.86,0.04615845]
[1763168494288,6.3944,140.87,140.86,0.04615845]
[1763168494598,9.1744,140.87,140.86,0.04615845]
[1763168494800,6.3944,140.87,140.86,0.04615845]
[1763168495699,9.1744,140.87,140.86,0.04615845]
[1763168497190,6.3957,140.84,140.79,5.96728921]
[1763168497399,9.1757,140.84,140.8,3.26]
[1763168497593,2.78,140.84,140.79,5.96728921]
[1763168497797,2.78,140.84,140.76,12.46738137]
[1763168498092,6.3972,140.81,140.77,3.26]
[1763168498297,0.04634838,140.8,140.78,3.30614962]
[1763168498498,6.44394838,140.8,140.78,0.04614962]
[1763168499003,6.44394838,140.8,140.78,3.30614962]
[1763168499192,6.44394838,140.8,140.78,0.04614962]
[1763168499398,0.04634838,140.8,140.78,3.30614962]
[1763168499598,2.78,140.86,140.78,3.30614962]
[1763168499803,2.78,140.86,140.78,0.04614962]
[1763168500001,6.3963,140.83,140.78,0.04614962]
[1763168500205,6.3963,140.83,140.79,3.26]
[1763168500398,2.78,140.86,140.79,3.26]
[1763168500598,2.83433491,140.84,140.81,0.04778667]
[1763168501106,9.23013491,140.84,140.81,0.04778667]
[1763168502502,0.05433491,140.84,140.81,5.04833358]
[1763168502800,0.05433491,140.84,140.82,3.26]
[1763168503004,9.1741,140.88,140.84,3.26]
[1763168503198,2.78,140.88,140.84,3.26]
[1763168504005,2.78,140.86,140.8,6.50009216]
[1763168504195,2.78,140.86,140.81,3.26]
[1763168504397,2.78,140.86,140.82,3.3112255]
[1763168504798,9.1758,140.84,140.82,0.0512255]
[1763168505702,2.78,140.83,140.82,0.0512255]
[1763168506201,2.78,140.81,140.76,9.76009216]
[1763168506403,2.78,140.81,140.76,6.50009216]
[1763168506599,2.78,140.81,140.75,6.50009216]
[1763168506798,6.3995,140.76,140.74,6.50009216]
[1763168507205,9.22704281,140.76,140.74,0.0490106]
[1763168508098,2.78,140.75,140.74,0.0490106]
[1763168509106,0.04754281,140.76,140.74,3.3090106]
[1763168509309,2.82754281,140.76,140.74,0.0490106]
[1763168509703,0.04754281,140.76,140.74,3.3090106]
[1763168510409,0.04754281,140.76,140.74,0.0490106]
[1763168511110,6.44694281,140.76,140.74,0.0490106]
[1763168511413,0.04754281,140.76,140.74,3.3090106]
[1763168511914,0.04754281,140.76,140.74,5.04955751]
[1763168512714,0.04754281,140.76,140.74,11.54964967]
[1763168512913,0.04754281,140.76,140.74,5.04955751]
[1763168513509,0.04754281,140.76,140.75,3.26]
[1763168514211,0.04754281,140.76,140.74,1.78955751]
[1763168514517,0.04754281,140.76,140.74,5.04955751]
[1763168516218,6.44684281,140.76,140.74,3.3090106]
[1763168516420,2.78,140.75,140.74,0.0490106]
[1763168520424,2.78,140.75,140.67,9.76009216]
[1763168520629,2.78,140.73,140.65,6.50009216]
[1763168520818,2.78,140.73,140.65,3.26]
[1763168521517,6.4026,140.69,140.68,0.05082154]
[1763168522121,6.4026,140.69,140.68,3.31082154]
[1763168522720,6.4026,140.69,140.68,0.05082154]
[1763168524021,9.1826,140.69,140.68,0.05082154]
[1763168524223,6.4026,140.69,140.68,0.05082154]
[1763168524617,9.1826,140.69,140.68,0.05082154]
[1763168524828,0.05053834,140.7,140.68,3.37082154]
[1763168525026,0.05053834,140.7,140.68,0.05082154]
[1763168525420,0.05053834,140.7,140.68,3.37082154]
[1763168527834,9.23263834,140.7,140.68,0.05082154]
[1763168529533,6.45263834,140.7,140.68,0.05082154]
[1763168529928,0.05053834,140.7,140.68,3.37082154]
[1763168534337,2.83053834,140.7,140.68,0.05082154]
[1763168534733,9.23263834,140.7,140.68,0.05082154]
[1763168535048,2.78,140.69,140.68,0.05082154]
[1763168535636,9.23263834,140.7,140.68,0.05082154]
[1763168537740,2.78,140.69,140.68,0.05082154]
[1763168540243,0.05053834,140.7,140.68,3.30082154]
[1763168543449,2.78,140.77,140.7,3.25]
[1763168543748,2.78,140.77,140.71,1.74372888]
[1763168544040,2.78,140.76,140.71,3.25]
[1763168544236,2.78,140.74,140.67,4.99372888]
[1763168544437,6.4017,140.71,140.69,3.29906288]
[1763168544641,9.1817,140.71,140.69,0.04906288]
[1763168545041,6.4017,140.71,140.69,0.04906288]
[1763168545241,0.04948471,140.72,140.69,3.29906288]
[1763168547543,2.78,140.77,140.71,3.25]
[1763168548153,6.3999,140.75,140.71,3.25]
[1763168548350,9.1799,140.75,140.71,3.25]
[1763168548545,0.05393067,140.74,140.72,3.30434106]
[1763168549645,6.45423067,140.74,140.72,3.30434106]
[1763168550746,9.23423067,140.74,140.72,0.05434106]
[1763168550950,2.78,140.73,140.72,0.05434106]
[1763168553056,9.1828,140.69,140.67,6.50009216]
[1763168553356,2.78,140.72,140.67,3.25]
[1763168553656,2.78,140.7,140.66,9.57009216]
[1763168554160,0.04816875,140.69,140.67,0.04534693]
[1763168554547,0.04816875,140.69,140.67,3.11534693]
[1763168554857,6.45066875,140.69,140.68,3.07]
[1763168555043,6.45066875,140.69,140.67,6.54543909]
[1763168555347,6.45066875,140.69,140.67,9.61543909]
[1763168555653,0.04816875,140.69,140.67,9.61543909]
[1763168560855,6.45076875,140.69,140.67,9.61543909]
[1763168561239,6.45076875,140.69,140.68,6.50009216]
[1763168564863,0.04816875,140.69,140.68,3.07]
[1763168565159,2.78,140.75,140.68,8.78771268]
[1763168565352,2.78,140.71,140.69,6.62859463]
[1763168565951,2.8288307,140.71,140.69,6.67841588]
[1763168566149,9.2304307,140.71,140.69,9.74841588]
[1763168566452,6.4504307,140.71,140.7,6.62859463]
[1763168566854,9.2304307,140.71,140.7,6.62859463]
[1763168567355,6.4504307,140.71,140.7,6.63026792]
[1763168567750,9.2304307,140.71,140.7,0.23406792]
[1763168567963,9.2304307,140.71,140.69,0.04982125]
[1763168567964,2.78,140.7,140.69,0.04982125]
[1763168569855,9.2304307,140.71,140.69,0.04982125]
[1763168571058,2.78,140.7,140.69,0.04982125]
[1763168576672,2.78,140.7,140.66,8.78771268]
[1763168576863,2.78,140.7,140.63,8.78771268]
[1763168577169,2.78,140.7,140.63,11.85771268]
[1763168577661,0.04890563,140.68,140.65,3.11512618]
[1763168577861,2.82890563,140.68,140.65,3.11512618]
[1763168578857,0.04890563,140.68,140.65,11.90283886]
[1763168579058,0.04890563,140.68,140.66,3.07]
[1763168579965,2.82890563,140.68,140.66,3.07]
[1763168581277,0.04890563,140.68,140.66,3.07]
[1763168581463,2.78,140.75,140.68,3.07]
[1763168582166,2.78,140.75,140.69,3.07]
[1763168582365,2.78,140.78,140.7,3.07]
[1763168582566,0.04826922,140.73,140.72,3.07]
[1763168582765,0.05380116,140.74,140.72,3.07]
[1763168585875,0.05380116,140.74,140.72,11.85771268]
[1763168586074,0.05380116,140.74,140.73,3.25]
[1763168588378,0.05380116,140.74,140.72,3.25]
[1763168589981,0.05380116,140.74,140.73,3.33]
[1763168591782,2.83380116,140.74,140.71,12.16792425]
[1763168591978,2.83380116,140.74,140.71,0.05021157]
[1763168593681,0.05380116,140.74,140.71,3.38021157]
[1763168597184,0.05380116,140.74,140.72,3.33]
[1763168600178,0.05380116,140.74,140.72,6.05525649]
[1763168603589,2.83380116,140.74,140.72,2.72525649]
[1763168603987,0.05380116,140.74,140.72,6.05525649]
[1763168604690,0.05380116,140.74,140.73,3.33]
[1763168605194,2.78,140.8,140.73,3.33]
[1763168605596,2.78,140.8,140.75,2.72525649]
[1763168606295,2.78,140.78,140.76,0.04630519]
[1763168622109,2.82243654,140.79,140.76,3.29630519]
[1763168623011,2.82243654,140.79,140.78,1.74168155]
[1763168623900,2.82243654,140.79,140.76,0.04630519]
[1763168624205,2.82243654,140.79,140.74,4.99168155]
[1763168625011,2.82243654,140.79,140.75,0.05237533]
[1763168626410,2.82243654,140.79,140.76,1.74168155]
[1763168627613,2.82243654,140.79,140.76,4.99168155]
[1763168627808,2.82243654,140.79,140.76,8.39432963]
[1763168628011,2.77,140.78,140.75,6.70502341]
[1763168628213,2.77,140.78,140.75,0.05237533]
[1763168628414,1.79411809,140.79,140.71,6.65264808]
[1763168628415,2.77,140.76,140.71,6.65264808]
[1763168628713,2.77,140.74,140.69,6.65264808]
[1763168628919,2.77,140.74,140.68,6.65264808]
[1763168629217,2.77,140.72,140.68,6.65264808]
[1763168629428,2.77,140.7,140.69,0.04656476]
[1763168630328,2.77,140.69,140.65,6.65264808]
[1763168630514,2.77,140.69,140.64,8.39432963]
[1763168630918,2.77,140.69,140.64,11.64432963]
[1763168631114,2.77,140.69,140.66,1.74168155]
[1763168631426,0.05124939,140.69,140.68,1.74168155]
[1763168631725,2.77,140.74,140.69,3.25]
[1763168631926,2.77,140.74,140.72,1.74168155]
[1763168632332,2.77,140.74,140.69,1.74168155]
[1763168632629,2.77,140.72,140.7,0.04627975]
[1763168636130,2.77,140.72,140.71,1.74168155]
[1763168639833,0.05284653,140.73,140.71,4.99168155]
[1763168640034,0.05284653,140.73,140.72,3.25]
[1763168640437,2.77,140.76,140.72,3.25]
[1763168640623,2.77,140.76,140.74,1.74168155]
[1763168640825,2.77,140.76,140.74,4.99168155]
[1763168641229,2.77,140.76,140.74,1.74168155]
[1763168641639,2.81618642,140.76,140.74,1.79600958]
[1763168642139,2.81618642,140.76,140.74,0.05432803]
[1763168642636,2.81618642,140.76,140.74,5.04600958]
[1763168643338,0.04618642,140.76,140.74,5.04600958]
[1763168647038,0.04618642,140.76,140.75,3.15]
[1763168647342,0.04618642,140.76,140.74,4.94600958]
[1763168647841,0.04618642,140.76,140.75,3.15]
[1763168648434,0.04618642,140.76,140.75,4.89168155]
[1763168651139,2.81618642,140.76,140.75,1.74168155]
[1763168651437,0.04618642,140.76,140.75,4.84168155]
[1763168651839,0.04618642,140.76,140.75,1.74168155]
[1763168652140,2.81618642,140.76,140.75,1.74168155]
[1763168653245,0.04618642,140.76,140.75,1.74168155]
[1763168653446,2.81618642,140.76,140.74,0.05432803]
[1763168655044,2.81618642,140.76,140.7,1.74168155]
[1763168655237,2.77,140.75,140.68,8.36394835]
[1763168655441,2.77,140.75,140.68,8.36918698]
[1763168655741,4.51168155,140.75,140.68,8.36918698]
[1763168655938,2.77,140.74,140.68,1.74168155]
[1763168656135,2.77,140.71,140.7,0.05141055]
[1763168661445,0.05228026,140.72,140.7,3.15141055]
[1763168661952,2.82228026,140.72,140.7,3.15141055]
[1763168662144,0.05228026,140.72,140.7,3.15141055]
[1763168662956,0.05228026,140.72,140.7,4.8930921]
[1763168663249,0.05228026,140.72,140.71,3.1]
[1763168664152,2.77,140.77,140.71,3.1]
[1763168664450,2.77,140.8,140.74,1.74168155]
[1763168664640,2.77,140.8,140.74,4.84168155]
[1763168664954,2.77,140.8,140.75,3.1]
[1763168665152,0.05387506,140.79,140.76,4.89013903]
[1763168665347,0.05387506,140.79,140.77,3.1]
[1763168668155,2.82387506,140.79,140.76,4.89013903]
[1763168668345,0.05387506,140.79,140.77,3.1]
[1763168669853,4.00630034,140.84,140.79,3.1]
[1763168670154,2.77,140.83,140.79,3.1]
[1763168670950,0.05369738,140.82,140.8,0.05117355]
[1763168671257,0.05369738,140.82,140.8,3.15117355]
[1763168673556,2.82369738,140.82,140.8,0.05117355]
[1763168674855,0.05369738,140.82,140.8,0.05117355]
[1763168675063,0.05369738,140.82,140.8,3.23117355]
[1763168675454,2.82369738,140.82,140.8,0.05117355]
[1763168676156,2.77,140.81,140.74,11.54918698]
[1763168676357,2.77,140.81,140.74,4.92168155]
[1763168676561,1.23630034,140.84,140.74,3.18]
[1763168676562,2.77,140.79,140.74,3.18]
[1763168676758,2.77,140.77,140.72,11.54918698]
[1763168676956,2.77,140.75,140.7,11.54918698]
[1763168677155,2.77,140.75,140.68,8.36918698]
[1763168677352,0.05434269,140.73,140.7,0.0482056]
[1763168677557,2.77,140.72,140.7,0.0482056]
[1763168678164,0.05434269,140.73,140.7,3.2282056]
[1763168678763,0.05434269,140.73,140.71,3.18]
[1763168678963,0.05434269,140.73,140.72,4.92168155]
[1763168679365,0.05434269,140.73,140.71,3.18]
[1763168679566,2.82434269,140.73,140.7,3.2282056]
[1763168685474,0.05434269,140.73,140.7,3.2282056]
[1763168685670,0.05434269,140.73,140.7,9.85571103]
[1763168685866,0.05434269,140.73,140.71,3.18]
[1763168695379,2.77,140.8,140.73,3.18]
[1763168695579,2.77,140.8,140.74,3.18]
[1763168696171,2.77,140.8,140.71,9.80750543]
[1763168696374,2.77,140.76,140.74,0.04664527]
[1763168699580,2.82209018,140.77,140.74,3.22664527]
[1763168700680,2.82209018,140.77,140.74,0.04664527]
[1763168701289,2.82209018,140.77,140.68,9.80750543]
[1763168701488,2.77,140.74,140.68,9.80750543]
[1763168701791,2.77,140.74,140.69,3.18]
[1763168702187,2.77,140.74,140.7,0.04881875]
[1763168702490,2.77,140.72,140.7,0.04881875]
[1763168703297,2.77,140.71,140.7,0.04881875]
[1763168705498,2.72444988,140.72,140.7,3.28881875]
[1763168705689,5.47444988,140.72,140.7,3.28881875]
[1763168705890,2.75,140.71,140.7,0.04881875]
[1763168706391,2.80334529,140.73,140.7,3.28881875]
[1763168708702,0.05334529,140.73,140.7,3.28881875]
[1763168708888,2.80334529,140.73,140.7,3.28881875]
[1763168709895,2.80334529,140.73,140.7,0.04881875]
[1763168710088,2.77,140.71,140.7,0.04881875]